Cogmind - Beta 16 @@@ ROGUE MODE // 2025.12.06 @ 15:22:46 Player: lvl5hm Result: Destroyed by 7I-LH5(R) with Subdweller Laser Performance ------------- Evolutions (0) 0 Regions Visited (2) 400 Robots Destroyed (35) 175 Value Destroyed (1009) 1009 Prototype IDs (1) 20 Alien Tech Used (0) 0 Bonus (0) 0 TOTAL SCORE: 1604 Bonus ------- None Cogmind --------- Core Integrity 0/250 Matter 157/300 Energy 200/200 System Corruption 0% Temperature Cool (6) Movement Treading (160) Location -10/Subcaves Parts ------- > --- POWER (1) -------- Subdweller Power Source > --- PROPULSION (2) --- Light Treads Spiked Treads > --- UTILITY (2) ------ Heat Sink Large Storage Unit > --- WEAPON (2) ------- Subdweller Machine Gun Subdweller Machine Gun > --- INVENTORY (15) --- Ion Engine Light Treads Light Treads Spiked Treads Compact Wheel Heat Sink Huge Storage Unit Medium Laser Subdweller Beam Cannon Assault Rifle Subdweller Machine Gun Grenade Launcher Subdweller Shrapnel Launcher Datajack Hammer Peak State ------------ > --- POWER ------------ Light Nuclear Core > --- PROPULSION ------- Light Treads Light Treads > --- UTILITY ---------- Heat Sink Large Storage Unit > --- WEAPON ----------- Advanced Beam Cannon Advanced Beam Cannon > --- INVENTORY -------- Heat Sink EM Shotgun EM Shotgun Medium Laser Assault Rifle Grenade Launcher [Rating: 13] Favorites ----------- Power Ion Engine Engine Ion Engine Power Core Light Nuclear Core Propulsion Light Treads Treads Light Treads Wheel Compact Wheel Utility Large Storage Unit Device Heat Sink Storage Large Storage Unit Weapon Advanced Beam Cannon Energy Gun Medium Laser Energy Cannon Advanced Beam Cannon Ballistic Gun Subdweller Machine Gun Launcher Subdweller Shrapnel Launcher Special Weapon Mining Laser Impact Weapon Hammer Build | -11 -10 -10 ------- Run | Yrd Mat Sub Slots Evolved . | . . . Power . | . . . Propulsion . | . . . Utility . | . . . Weapon . | . . . Parts Attached 37 | 6 14 17 Power 8 | 1 5 2 Engine 7 | 1 4 2 Core 1 | . 1 . Reactor . | . . . Propulsion 10 | 2 3 5 Treads 9 | 2 2 5 Leg . | . . . Wheel 1 | . 1 . Hover . | . . . Flight . | . . . Utility 3 | 1 2 . Device 1 | . 1 . Storage 2 | 1 1 . Processor . | . . . Hackware . | . . . Protection . | . . . Artifact . | . . . Weapon 16 | 2 4 10 Energy Gun 2 | 1 . 1 Energy Cannon 4 | . 3 1 Ballistic Gun 6 | 1 . 5 Ballistic Cannon . | . . . Launcher 2 | . 1 1 Special Weapon 1 | . . 1 Impact Weapon 1 | . . 1 Slashing Weapon . | . . . Piercing Weapon . | . . . Special Melee Weapon . | . . . Unidentified Prototypes 1 | . 1 . Parts Lost 4 | . 3 1 Power 3 | . 3 . Propulsion 1 | . . 1 Utility . | . . . Weapon . | . . . Highest Loss Streak 1 | . 1 1 To Critical Strikes . | . . . Average Backups 12 | . 9 14 Power . | . . 1 Propulsion 3 | . 2 4 Utility 1 | . 1 2 Weapon 5 | . 4 6 Tool/Special . | . . . Unused Backups 7 | . 1 6 Power 1 | . 1 . Propulsion . | . . . Utility 2 | . . 2 Weapon 3 | . . 3 Tool/Special 1 | . . 1 Average Slot Usage (%) 97 | . 94 99 Engine 13 | . 12 14 Treads 27 | . 25 27 Device 12 | . 10 14 Storage 14 | . 14 14 Energy Cannon 16 | . 25 10 Ballistic Gun 10 | . 1 16 Peak Build Rating 13 | 6 13 12 Average Rating 11 | 4 10 11 On Entrance 6 | . 6 12 Avg Prop Armor Cover (%) 11 | . 11 . Naked Turns . | . . . Heaviest Build 38 | 14 38 38 Greatest Support 40 | 40 40 40 Greatest Overweight (x) 4 | 4 2 . Average Overweight (x) . | . . . Largest Inventory Capacity 15 | 8 15 15 Average Capacity 14 | 7 13 15 Most Carried 15 | 1 15 15 Average Carried 12 | . 9 14 Final Capacity 15 | 8 15 15 Final Carried 15 | 1 15 15 Class Distribution -------------------- 68% | Mutant 31% | Scavenger-Mutant Dominant Class ---------------- Mutant | -10/Materials Scavenger-Mutant | -10/Subcaves Resources | -11 -10 -10 ----------- Run | Yrd Mat Sub Matter Collected 727 | 200 230 297 Remotely . | . . . Salvage Created 1267 | . 860 407 Parts 75 | . 49 26 Haulers Intercepted 2 | . 2 . Recyclers Shooed . | . . . Parts Field Recycled . | . . . Retrieved Matter . | . . . Parts Self-Destructed 7 | . . 7 Prevented . | . . . Parts Restored . | . . . Kills | -11 -10 -10 ------- Run | Yrd Mat Sub Combat Hostiles Destroyed 30 | . 20 10 Guns 6 | . 3 3 Cannons 22 | . 17 5 AOE 2 | . . 2 Classes Destroyed 8 | . 5 3 Hauler 2 | . 2 . Recycler 1 | . 1 . Watcher 2 | . 2 . Swarmer 6 | . 6 . Grunt 14 | . 14 . Sentry 1 | . . 1 Artisan 1 | . . 1 Subdweller 9 | . . 9 Best Kill Streak 3 | . 3 2 Combat Bots Only 3 | . 3 2 Max Kills in Single Turn 1 | . 1 1 Gunslinging . | . . . Exploded 1 | . . 1 Melee . | . . . Uniques/NPCs Destroyed . | . . . Combat | -11 -10 -10 -------- Run | Yrd Mat Sub Hostile Shots Fired 143 | . 81 62 Missed 46 | . 25 21 Hits 97 | . 56 41 Projectile 97 | . 56 41 AOE 1 | . . 1 Critical Strikes 3 | . 1 2 Damage Taken 1550 | . 672 878 Core 253 | . 68 185 Absorbed by Shields . | . . . Regen/Repaired (Parts) 190 | . 190 . Core Remaining (%) 100 | 100 . . Volleys Fired 106 | . 50 56 Largest 2 | . 2 2 Hottest 136 | . 136 136 Shots Fired 180 | . 98 82 Gun 51 | . 10 41 Cannon 118 | . 87 31 Launcher 6 | . 1 5 Special 5 | . . 5 Kinetic 49 | . 5 44 Thermal 130 | . 92 38 Explosive 1 | . 1 . Electromagnetic . | . . . Robot Hit Streak 25 | . 13 25 Robot Miss Streak 2 | . 2 2 Penetration Max . | . . . Secondary Targets 1 | . 1 . Max Gunslinging Chain 1 | . 1 . Shots Hit Robots 112 | . 61 51 Core Hits 47 | . 28 19 Critical Kills . | . . . Critical Parts Destroyed . | . . . Critical Strikes . | . . . Melee Attacks 3 | . . 3 Impact 3 | . . 3 Slashing . | . . . Piercing . | . . . Sneak Attacks . | . . . Combat Hostiles . | . . . Follow-up Attacks . | . . . Damage Inflicted 2514 | . 1271 1243 Guns 543 | . 62 481 Cannons 1741 | . 1201 540 Explosions 230 | . 8 222 Melee . | . . . Ramming . | . . . Kinetic 692 | . 14 678 Thermal 1814 | . 1249 565 Explosive 8 | . 8 . Electromagnetic . | . . . Impact . | . . . Slashing . | . . . Piercing . | . . . Highest Corruption . | . . . Average Corruption . | . . . Corruption Purged . | . . . Corruption Blocked . | . . . Overload Shots . | . . . Overflow Damage 1 | . 1 . Projectiles 1 | . 1 . Explosions . | . . . Melee . | . . . Knockbacks . | . . . Impact . | . . . Kinetic . | . . . Secondary . | . . . Self-Inflicted Damage . | . . . Shots . | . . . Rammed . | . . . Targets Rammed . | . . . Kicked . | . . . Crushed . | . . . Highest Temperature 381 | . 381 . Average Temperature 104 | . 104 . Received Heat Transfer 399 | . 288 111 Siege Activations . | . . . Martial Activations . | . . . Shielding Activations . | . . . Robots Disrupted . | . . . Combat Hostiles . | . . . Robots Corrupted . | . . . Combat Hostiles . | . . . Parts Fried . | . . . Impact Corruptions . | . . . Robots Melted . | . . . Combat Hostiles . | . . . Parts Melted 3 | . 2 1 Heat Transferred 3219 | . 2257 962 Parts Sabotaged . | . . . Parts Stolen . | . . . Parts Stripped . | . . . Power Chain Reactions . | . . . Alert | -11 -10 -10 ------- Run | Yrd Mat Sub Maximum Alert Level . | . . . Low Security (%) 100 | 100 100 . Level 1 . | . . . Level 2 . | . . . Level 3 . | . . . Level 4 . | . . . Level 5 . | . . . High Security . | . . . Max Security . | . . . Peak Influence 147 | . 147 . Initial . | . . . Average 56 | . 59 . Influence Increases 638 | . 618 20 Destroy 0b10 Robot/C 420 | . 400 20 Destroy 0b10 Robot/NC 25 | . 25 . Destroy Leader 78 | . 78 . Successful Hack 16 | . 16 . Destroy Structure 9 | . 9 . Partial Spotted 30 | . 30 . Lose Combat Pursuer 60 | . 60 . Influence Decreases 638 | . 509 129 Entered New Map 53 | . . 53 Time Decay 555 | . 479 76 Lost Part 30 | . 30 . Squads Dispatched 3 | . 3 . Investigation 2 | . 2 . Extermination . | . . . Reinforcement 1 | . 1 . Assault . | . . . Garrison . | . . . Intercept . | . . . Searches Triggered . | . . . Construction Impeded . | . . . Haulers Reinforced . | . . . Active Scanning Responses . | . . . Cargo Convoy Interrupts . | . . . Stealth | -11 -10 -10 --------- Run | Yrd Mat Sub Distress Signals 2 | . 2 . Communications Jammed . | . . . Distress Signals . | . . . Times Spotted 42 | . 30 12 Peak Tracking Total 6 | . 6 2 Tactical Retreats 3 | . 3 . Traps | -11 -10 -10 ------- Run | Yrd Mat Sub Traps Triggered 3 | . 3 . Indirectly . | . . . Trap Hack Attempts . | . . . Triggered . | . . . Disarmed . | . . . Reprogrammed . | . . . Reused . | . . . Traps Extracted . | . . . Installed . | . . . Triggered . | . . . Machines | -11 -10 -10 ---------- Run | Yrd Mat Sub Machines Disabled . | . . . Max in Single Turn . | . . . Machines Repaired . | . . . Machines Dismantled . | . . . Machines Sabotaged . | . . . Overloaded Fab Kills . | . . . Hacking | -11 -10 -10 --------- Run | Yrd Mat Sub Machines Accessed 3 | . 3 . Terminals 2 | . 2 . Fabricators . | . . . Repair Stations 1 | . 1 . Recycling Units . | . . . Scanalyzers . | . . . Garrison Access . | . . . Total Hacks 12 | . 12 . Successful 7 | . 7 . Failed 5 | . 5 . Catastrophic . | . . . Database Lockouts . | . . . Manual 8 | . 8 . Terminals 8 | . 8 . Fabricators . | . . . Repair Stations 4 | . 4 . Recycling Units . | . . . Scanalyzers . | . . . Garrison Access . | . . . Terminal Hacks 2 | . 2 . Robot Analysis 1 | . 1 . Zone Layout 1 | . 1 . Fabricator Hacks . | . . . Repair Station Hacks 4 | . 4 . Scan Component 2 | . 2 . Repair 2 | . 2 . Recycling Unit Hacks . | . . . Scanalyzer . | . . . Garrison Access Hacks . | . . . Unauthorized Hacks 1 | . 1 . Terminals 1 | . 1 . Botnet 1 | . 1 . Fabricators . | . . . Repair Stations . | . . . Recycling Units . | . . . Scanalyzers . | . . . Garrison Access . | . . . Data Cores Recovered . | . . . Used . | . . . Hacking Detections 2 | . 2 . Full Trace Events . | . . . Feedback Events . | . . . Feedback Blocked . | . . . Robot Schematics Acquired . | . . . Robots Built . | . . . Authchips . | . . . Time . | . . . Total Robot Build Rating . | . . . Part Schematics Acquired . | . . . Parts Built . | . . . Authchips . | . . . Time . | . . . Total Part Build Rating . | . . . Part Studies Acquired . | . . . Parts Repaired 2 | . 2 . Time 62 | . 62 . Parts Recycled . | . . . Recycled Matter . | . . . Retrieved Matter . | . . . Retrieved Components . | . . . Parts Scanalyzed . | . . . Part Schematics Acquired . | . . . Parts Damaged . | . . . Bothacking | -11 -10 -10 ------------ Run | Yrd Mat Sub Used RIF Installer . | . . . Robots Hacked . | . . . Non-combat . | . . . Combat . | . . . Robot Hacks Applied . | . . . Relay Couplers Released . | . . . Fabnet Peak Effective % . | . . . Robots Rewired . | . . . Allies Hacked . | . . . Hacks Repelled . | . . . Allies | -11 -10 -10 -------- Run | Yrd Mat Sub Total Allies . | . . . Largest Group . | . . . Highest-Rated Group . | . . . Highest-Rated Ally . | . . . Total Orders . | . . . Ally Attacks . | . . . Total Damage . | . . . Kills . | . . . Allies Corrupted . | . . . Allies Melted . | . . . Intel | -11 -10 -10 ------- Run | Yrd Mat Sub Active Infowar (turns) . | . . . Robot Analysis Total 1 | . 1 . Derelict Logs Recovered 2 | . . 2 Drone Launches . | . . . Drone Recoveries . | . . . Exploration | -11 -10 -10 ------------- Run | Yrd Mat Sub Turns Passed 3730 | 79 1500 2151 Spaces Moved 1645 | 41 646 958 Core 19 | 19 . . Treads 1479 | 22 499 958 Legs . | . . . Wheels 147 | . 147 . Hover . | . . . Flight . | . . . Fastest Speed 50 | 50 115 160 Average Speed 162 | 154 167 160 Slowest Speed 250 | 250 240 160 Overloaded Moves . | . . . Propulsion Burnouts . | . . . Robots Hopped . | . . . Potential Cave-ins . | . . . Cave-ins Triggered . | . . . Exploration Rate (%) 50 | 3 85 62 Regions Visited 2 Branch Regions 1 Pre-discovered Areas 1 | . . 1 Known Exits Taken . | . . . Unknown Exits Taken 2 | 1 1 . Scrap Searched 8 | . . 8 Spaces Dug 5 | . 5 . Terrain Destroyed 35 | . 6 29 Melee . | . . . Projectile 2 | . 1 1 AOE 33 | . 5 28 Terrain Rammed . | . . . Walls Destroyed . | . . . Machines Disabled . | . . . Actions | -11 -10 -10 --------- Run | Yrd Mat Sub Total 2495 | 54 963 1478 Wait 657 | 7 232 418 Move 1643 | 40 645 958 Hop . | . . . Pick Up 20 | 1 14 5 Fast Attach 14 | 6 8 . Attach 1 | . . 1 Detach 3 | . 3 . Swap 32 | . 7 25 Drop 16 | . 4 12 Fire 106 | . 50 56 Melee 3 | . . 3 Ram . | . . . Kick . | . . . Crush . | . . . Escape Stasis . | . . . Rewire . | . . . Trap . | . . . Miscellaneous . | . . . Route ------- -11/Scrapyard -10/Materials (discovered 5 exits: [*Mat x3] / [*Min] / [*Sub]) -10/Subcaves (discovered 2 exits: [*Mat x2]) History --------- Turn | Location | Event 34 | -11/Scrapyard | Discovered new exit (range 15) 80 | -11/Scrapyard | Entered Materials 309 | -10/Materials | Build established: Mutant 330 | -10/Materials | Discovered new exit (range 15) 562 | -10/Materials | Discovered new exit (range 16) 955 | -10/Materials | Repaired Lgt. Treads 992 | -10/Materials | Repaired Broken Lgt. Treads 1165 | -10/Materials | Discovered new exit (range 7) 1259 | -10/Materials | Discovered new exit (range 6) 1451 | -10/Materials | Discovered new exit (range 7) 1580 | -10/Materials | Entered Subcaves 1581 | -10/Subcaves | Approached by a straggling Scientist 2165 | -10/Subcaves | A swath of the cavern ceiling suddenly collapsed 2377 | -10/Subcaves | Learned Materials emergency access door positions 2412 | -10/Subcaves | Build established: Scavenger-Mutant 2772 | -10/Subcaves | Shifting Twisted Machinery released Battle Cannon 2802 | -10/Subcaves | Discovered new exit (range 15) 2815 | -10/Subcaves | Core integrity fell below 50% 3086 | -10/Subcaves | Build established: Mutant 3131 | -10/Subcaves | Discovered new exit (range 15) 3143 | -10/Subcaves | Shifting Twisted Machinery released Sub. Machine Gun 3148 | -10/Subcaves | Shifting Twisted Machinery released Riot Gun 3366 | -10/Subcaves | A swath of the cavern ceiling suddenly collapsed 3579 | -10/Subcaves | Build established: Scavenger-Mutant 3601 | -10/Subcaves | Ambushed by angry Subdweller bent on revenge 3723 | -10/Subcaves | Core integrity fell below 20% 3731 | -10/Subcaves | Destroyed by 7I-LH5(R) with Subdweller Laser Last Messages --------------- Riot Gun falls loose from the Twisted Machinery. 03150_ Dropped Sub. Machine Gun. 03253_ 1R-HBS(R): "LEAVESUB!" 03264_ 1R-HBS(R) destroyed. 03266_ Acquired 42 matter. 03290_ Sub. Beam Cannon shoots sparks and powers down. 03333_ Acquired 5 matter. A swath of the cavern ceiling suddenly collapses. 03594_ YB-6V3(u) builds Twisted Machinery. 03599_ YB-6V3(u) cries out in pain. 03599_ YB-6V3(u) destroyed. 03601_ 7S-LVR(R) angrily emerges from the Twisted Machinery. 03601_ 7S-LVR(R): "WEHOME!" 03608_ 7S-LVR(R) destroyed. 03616_ Dropped Sub. Machine Gun. 03618_ Acquired 29 matter. 03626_ Dropped Lgt. Treads. Map ----- +----------------------------------------------------+ | ?????????????????????????????????????????????????? | | #????????????????????????????????????????????????? | | #????????????????????????????????????????????????? | | ?????????????????????????????????????????????????? | | ?????????????????????????????????????????????????? | | ?????????????????????????????????????????????????? | | ????????????????????????????????????????????????? | | ?????????????????????????????????????????????????? | | ##???????????????????????????????????????????????? | | #?????????????????????????????????????????????? | | #??????????????????????? ?#??????????????????? | | # #?????????????????????? ????????????????? | | ??? ?????????????????????? ????????????????? | | ???????????????????? ????? ?????????????????? | | #?????????????????? ????? ?????????????????? | | ##????????????????# #????? """????????????????? | | #???????????????? #????? " " ???????????????? | | ##??????????#####?# #????? """ ???????????????? | | #???????????# ## #?#### ?????????????????? | | ##???????????# #?# ??????????????????? | | ######???????# ### ????????????????????? | | #????????# #?????????????????????? | | ##???????# ## RR#??????????????????????? | | # ####????# ## #??????????????????????? | | ### ###### ##?????????????????????? | | ??## @ #?????????????????????? | | #??#### #####?????????????????????? | | ##??## ##?????????????????????????? | | #??# ## #??????????????????????????? | | ##?# #### #??????????????????????????? | | #?# #??## ### #??????????????????????????? | | ?# #???####?# #??????????????????????????? | | ?## ##????????## ##??????????????????????????? | | ??#####???????????####???????????????????????????? | | ?????????????????????????????????????????????????? | | ?????????????????????????????????????????????????? | | ?????????????????????????????????????????????????? | | ?????????????????????????????????????????????????? | | ?????????????????????????????????????????????????? | | ?????????????????????????????????????????????????? | | ?????????????????????????????????????????????????? | | ?????????????????????????????????????????????????? | | ?????????????????????????????????????????????????? | | ?????????????????????????????????????????????????? | | ?????????????????????????????????????????????????? | | ?????????????????????????????????????????????????? | | ?????????????????????????????????????????????????? | | ?????????????????????????????????????????????????? | | | | | +----------------------------------------------------+ Best States ------------- Heat Dissipation 35 Energy Generation 14 Energy Capacity 250 Matter Stores 300 Matter Capacity 300 Sight Range 16 Terrain Scan Density 10 Evasion (%) 40 Recoil Reduction 2 Item Schematics ----------------- None Robot Schematics ------------------ None Fabricated ------------ Nothing Repaired ---------- Lgt. Treads | 27% | -10/Materials Lgt. Treads | 37% | -10/Materials | Broken Studied --------- None Alien Tech Used ----------------- None Achievements -------------- None Challenges ------------ None Game ------ Seed CarbideSalvagingDevice Manual? 0 Play Time 00:17:12 Cumulative 270.4 hours Start 2025.12.06 @ 14:58:14 End 2025.12.06 @ 15:22:46 Sessions 1 Manual Loads 0 Difficulty Rogue Special Mode None Game No. 202 Rogue 202 Adventurer 0 Explorer 0 Win Type - Total 12 Types 7/0/2/1/0/0/0/1/0/1 Lore% 71 Gallery% 75 Achievement% 69 Wizard Run 0 Options --------- Layout 2 ASCII 0 Keyboard 1 Movement Arrows Keybinds 0 Fullscreen 1 Font 32/Tamsyn Map View 50x44 Zoom Use 0% Tactical HUD 1 Map Filters NONE Filters NONE Steam 1 RUN: fd011dd5-69ed-4ab0-8cf5-b8b808f4a6ed